bitfinex/quotes_ETHUSD_20250720
["timestamp","ask_amount","ask_price","bid_price","bid_amount"]
[1752983011861,2.72094235,3675.2,3675.0,0.4711]
[1752983012300,2.72108843,3675.0,3674.9,0.7902]
[1752983012602,2.72138464,3674.6,3674.5,0.7902]
[1752983012899,0.136,3674.5,3674.0,1.2613]
[1752983013065,2.72160683,3674.3,3674.0,1.2613]
[1752983013267,0.03402101,3674.2,3673.8,0.136]
[1752983013464,2.72181826,3674.1,3673.6,0.4711]
[1752983013690,2.72187023,3674.0,3673.6,0.4711]
[1752983013922,2.72187023,3674.0,3673.5,0.136]
[1752983014123,0.03402378,3673.9,3673.5,0.136]
[1752983014326,2.72212543,3673.6,3673.5,0.136]
[1752983014526,2.85819953,3673.5,3673.4,0.001]
[1752983014725,0.7628,3673.2,3672.1,0.136]
[1752983014893,0.136,3672.4,3671.8,1.3973]
[1752983015320,0.136,3672.4,3671.8,0.136]
[1752983015521,2.72300566,3672.5,3671.6,2.7235969]
[1752983015708,2.72300566,3672.5,3671.8,0.7902]
[1752983015709,2.72308907,3672.3,3671.8,0.7902]
[1752983015911,0.7628,3673.2,3671.8,0.7902]
[1752983015912,0.136,3672.8,3672.2,0.136]
[1752983016326,5.98981265,3673.6,3671.9,0.4711]
[1752983016327,0.03403027,3673.2,3671.9,0.4711]
[1752983016514,0.136,3672.7,3672.0,0.136]
[1752983016715,0.25257338,3673.1,3672.0,0.136]
[1752983016716,2.72255439,3673.1,3672.1,0.4711]
[1752983016905,0.25253536,3673.0,3672.4,0.7902]
[1752983017107,0.25253536,3672.9,3672.7,0.136]
[1752983017301,0.25253536,3672.8,3672.7,0.136]
[1752983017801,0.4426,3673.7,3672.4,0.7902]
[1752983018105,0.136,3672.7,3672.4,0.7902]
[1752983018308,0.136,3672.7,3672.5,0.4711]
[1752983018533,0.136,3672.7,3672.4,0.7902]
[1752983019032,2.7227811,3672.8,3672.0,1.40263938]
[1752983019333,0.136,3672.4,3672.0,1.40263938]
[1752983019494,0.136,3672.4,3672.1,0.4711]
[1752983019930,0.136,3672.7,3672.2,0.4711]
[1752983020127,0.25228654,3672.6,3672.3,2.72308907]
[1752983020299,0.136,3672.8,3672.4,0.4711]
[1752983020496,0.25220823,3672.7,3672.6,2.72286663]
[1752983020728,0.136,3673.5,3672.7,0.136]
[1752983021029,0.28620838,3673.4,3672.1,0.4711]
[1752983021231,2.72279249,3672.7,3671.9,0.136]
[1752983021395,0.25217996,3672.6,3672.5,2.72294077]
[1752983021600,0.25217996,3672.6,3672.5,3.60233485]
[1752983021800,0.25217996,3672.6,3672.5,3.33004077]
[1752983022097,0.20740459,3673.4,3672.8,2.72271636]
[1752983022298,0.38802117,3673.3,3672.8,2.72266828]
[1752983022498,0.25202117,3673.2,3672.8,0.4711]
[1752983022737,0.136,3673.3,3672.9,0.4711]
[1752983022738,0.25202117,3673.1,3672.9,0.4711]
[1752983022941,0.25202117,3673.0,3672.8,0.136]
[1752983023106,0.25202117,3672.9,3672.6,0.136]
[1752983023295,0.136,3673.2,3672.7,0.4711]
[1752983023501,0.25199716,3673.1,3672.9,2.72262496]
[1752983023702,0.03402008,3674.3,3673.0,1.2639]
[1752983023932,0.136,3673.9,3673.0,1.3999]
[1752983024132,2.72216092,3673.6,3673.0,1.3999]
[1752983024335,0.25198155,3673.5,3673.1,0.4711]
[1752983024538,0.25198155,3673.4,3673.2,0.4711]
[1752983024701,0.25198155,3673.3,3673.1,2.7224437]
[1752983024900,0.25198155,3673.2,3673.0,0.9288]
[1752983025136,0.25213996,3673.1,3673.0,12.0793701]
[1752983025339,0.25214244,3673.1,3673.0,1.3999]
[1752983025511,0.136,3674.4,3673.7,2.72204716]
[1752983025832,0.28614352,3674.3,3673.2,5.427]
[1752983026011,2.8579833,3673.8,3673.2,5.563]
[1752983026202,0.25212344,3673.7,3673.2,5.563]
[1752983026415,0.25212344,3673.6,3673.5,0.136]
[1752983026619,0.25212344,3673.6,3673.5,2.85819953]
[1752983026927,0.25212344,3673.6,3673.0,0.4711]
[1752983027247,0.25212344,3673.5,3673.0,0.4711]
[1752983027411,0.25212344,3673.4,3673.1,0.4711]
[1752983027614,0.25212344,3673.3,3673.1,2.72244505]
[1752983027809,0.25212344,3673.3,3672.7,5.425]
[1752983027810,2.72217015,3673.6,3672.7,3.0]
[1752983028052,2.97443294,3673.5,3672.8,5.423]
[1752983028212,2.7224022,3673.3,3672.8,5.423]
[1752983028617,2.72236043,3673.3,3672.8,5.423]
[1752983028820,2.7222651,3673.5,3672.8,3.61506859]
[1752983029039,0.4426,3674.4,3672.9,5.421]
[1752983029235,0.2522742,3674.2,3672.8,0.89236003]
[1752983029447,2.72247763,3673.2,3672.9,5.421]
[1752983029717,2.72235901,3673.3,3672.8,5.42]
[1752983029917,0.03402656,3673.6,3672.4,6.532]
[1752983030170,0.03402749,3673.5,3672.4,6.532]
[1752983030352,2.72227364,3673.4,3672.5,5.419]
[1752983030577,2.72277514,3672.8,3672.5,5.419]
[1752983030851,0.4691,3673.7,3672.2,5.418]
[1752983030852,0.55,3673.5,3672.2,5.418]
[1752983031013,2.72234775,3673.3,3672.2,8.418]
[1752983031216,2.72258531,3673.0,3672.3,2.72308907]
[1752983031459,0.4691,3673.7,3672.2,9.38221]
[1752983031665,0.4691,3673.7,3672.5,2.72288772]
[1752983031666,0.28640739,3673.6,3672.5,2.72288772]
[1752983031828,2.97458036,3673.5,3672.6,2.7228342]
[1752983032030,0.25238083,3673.4,3672.7,2.72272637]
[1752983032269,0.25238083,3673.3,3672.7,3.31034604]
[1752983032414,2.72235053,3673.3,3672.7,0.58761967]
[1752983032618,0.7817,3673.8,3672.2,12.10533128]
[1752983032837,2.72221271,3673.5,3672.8,0.4305]
[1752983033046,0.25246227,3673.4,3672.9,2.7226408]
[1752983033360,0.25246227,3673.3,3672.7,5.414]
[1752983033532,2.72232515,3673.4,3672.7,5.414]
[1752983033726,0.2526415,3673.3,3672.7,8.13677709]
[1752983033954,2.72229076,3673.4,3672.7,8.13678366]
[1752983034273,0.28667,3673.3,3672.5,5.414]
[1752983034474,0.4691,3673.5,3672.5,8.13689817]
[1752983034475,2.97513487,3673.2,3672.5,8.13689817]
[1752983034676,0.25264066,3673.1,3672.5,8.13689817]
[1752983034872,2.72236233,3673.3,3672.2,0.96421]
[1752983035075,0.25292884,3673.2,3672.1,3.4305]
[1752983035368,0.25292884,3673.1,3672.4,2.72295381]
[1752983035536,0.25292884,3673.0,3672.5,0.4305]
[1752983035737,0.55,3673.7,3672.6,0.4305]
[1752983035950,0.48779554,3673.6,3672.6,0.4305]
[1752983036270,5.41,3674.2,3672.6,0.4305]
[1752983036271,0.25299731,3673.5,3672.8,0.7926]
[1752983036446,0.25299731,3673.4,3673.1,2.72243469]
[1752983036651,0.03401915,3674.4,3673.2,3.15290837]
[1752983036864,2.72191916,3673.9,3673.2,2.72237482]
[1752983037059,0.136,3673.5,3673.1,2.72244892]
[1752983037372,0.136,3673.5,3673.2,2.72241828]
[1752983037694,2.72188716,3674.0,3673.3,2.72233911]
[1752983037881,0.136,3673.8,3673.4,2.72226269]
[1752983038178,0.25342199,3673.7,3673.2,0.4305]
[1752983038342,0.25342199,3673.6,3673.2,3.15290476]
[1752983038537,0.136,3673.8,3673.1,0.136]
[1752983038538,1.03512199,3673.5,3673.1,0.136]
[1752983038738,0.136,3673.1,3672.4,0.136]
[1752983038947,0.136,3673.1,3672.4,3.136]
[1752983039480,0.136,3673.1,3672.4,0.136]
[1752983039694,0.136,3672.9,3672.4,2.85899584]
[1752983039901,0.136,3672.9,3672.4,0.136]
[1752983040183,0.25363531,3672.8,3672.4,0.136]
[1752983040348,0.25363531,3672.7,3672.4,0.136]
[1752983040555,0.25363531,3672.6,3672.4,0.136]
[1752983040794,2.85865484,3672.9,3672.4,0.136]
[1752983041000,0.25376802,3672.8,3672.4,0.136]
[1752983041307,2.72286881,3672.6,3672.0,0.001]
[1752983041536,3.11272178,3672.5,3672.0,0.001]
[1752983041668,2.97680406,3672.4,3672.0,0.001]
[1752983041868,0.25376802,3672.3,3672.0,0.001]
[1752983042215,0.25376802,3672.2,3672.0,0.001]
[1752983042370,0.8013,3672.4,3672.0,0.001]
[1752983042572,0.25415193,3672.3,3672.0,0.001]
[1752983042768,0.25415193,3672.2,3672.0,3.28264244]
[1752983042968,0.25415193,3672.2,3671.2,0.8333]
[1752983042969,0.8013,3671.8,3667.3,0.4305]
[1752983043169,0.136,3669.2,3668.4,0.136]
[1752983043371,0.8013,3669.7,3667.4,0.14216727]
[1752983043372,0.8013,3668.9,3667.4,0.14216727]
[1752983043617,2.72590977,3668.5,3667.4,0.14216727]
[1752983043798,2.72657868,3667.6,3667.5,0.136]
[1752983044036,0.6051,3667.6,3666.2,1.2638]
[1752983044210,0.03408316,3667.5,3666.9,0.136]
[1752983044547,0.136,3667.4,3666.9,0.136]
[1752983044854,0.28747064,3667.3,3667.0,0.4305]
[1752983045167,2.72569782,3668.8,3667.0,0.4305]
[1752983045168,0.7813,3668.6,3667.1,0.4305]
[1752983045457,0.4691,3669.2,3667.1,0.4305]
[1752983045458,0.136,3668.3,3667.6,0.136]
[1752983045604,0.25259543,3668.2,3667.7,0.4305]
[1752983045803,0.0340683,3669.1,3668.2,3.0]
[1752983045804,2.7254906,3669.1,3668.2,3.0]
[1752983046007,0.2525819,3669.0,3668.3,1.2401]
[1752983046236,0.25211964,3668.9,3668.4,0.4305]
[1752983046550,2.7238424,3671.3,3668.4,0.4305]
[1752983046551,0.03404881,3671.2,3669.4,5.45048236]
[1752983046761,0.25206516,3671.1,3669.6,3.0]
[1752983046963,0.25206516,3671.0,3670.4,2.72448226]
[1752983047108,0.7813,3671.8,3669.7,0.4305]
[1752983047109,0.25206516,3670.9,3670.2,0.4305]
[1752983047456,0.7813,3671.8,3670.6,2.72427922]
[1752983047761,0.7813,3671.8,3670.2,0.4305]
[1752983047762,0.25182346,3671.7,3670.3,0.82571992]
[1752983047958,0.25182346,3671.6,3670.4,2.72442746]
[1752983048250,3.47866068,3671.5,3669.8,0.8096]
[1752983048451,0.25182346,3671.4,3670.1,0.4305]
[1752983048650,0.25182346,3671.3,3670.8,2.72419041]
[1752983048951,0.25182346,3671.2,3671.0,0.8096]
[1752983049173,0.03403768,3672.4,3671.0,0.8096]
[1752983049315,2.97484521,3672.3,3671.0,0.8096]
[1752983049510,2.7236859,3671.5,3670.7,2.7242646]
[1752983049816,0.25175892,3671.4,3670.7,2.7242646]
[1752983050024,0.25175892,3671.3,3670.7,3.69289476]
[1752983050219,0.03403954,3672.2,3670.7,3.96863016]
[1752983050220,2.72360636,3671.7,3670.7,3.96863016]
[1752983050411,2.97539394,3671.6,3670.8,2.72417324]
[1752983050632,0.25174331,3671.5,3670.9,2.72411743]
[1752983050812,0.25174331,3671.5,3670.7,0.96863016]
[1752983050813,0.25174331,3671.4,3670.7,3.6928402]
[1752983051011,0.28577842,3671.3,3670.4,4.2376]
[1752983051265,3.22708866,3671.2,3669.7,0.4305]
[1752983051469,0.80175826,3671.1,3669.4,0.8071]
[1752983051737,0.55,3670.8,3669.2,0.4305]
[1752983051964,2.72411883,3671.0,3669.3,0.01614131]
[1752983052125,0.25175905,3670.9,3670.0,2.72473074]
[1752983052312,2.97596417,3670.8,3670.1,0.27247307]
[1752983052514,2.72449869,3670.4,3667.6,0.8071]
[1752983052820,0.7577,3670.5,3667.6,0.8071]
[1752983052821,0.55,3670.0,3668.0,0.4305]
[1752983053025,2.72555046,3669.0,3668.1,2.7261478]
[1752983053205,2.72532968,3669.3,3668.4,2.72597483]
[1752983053409,2.72539646,3669.2,3668.4,2.72598396]
[1752983053709,3.7577,3670.5,3668.1,0.01616289]
[1752983053710,2.72507609,3669.7,3668.6,2.72583546]
[1752983053909,5.385,3670.1,3668.5,0.7030984]
[1752983053910,0.25173606,3669.6,3668.8,3.0]
[1752983054109,0.25166693,3669.5,3668.7,0.8071]
[1752983054310,0.28575528,3669.4,3667.8,0.4305]
[1752983054522,0.25168977,3669.3,3668.3,2.72605404]
[1752983054728,2.72540086,3669.2,3668.4,2.9985846]
[1752983054938,2.72538968,3669.3,3668.5,3.0]
[1752983055145,2.72531691,3669.3,3668.5,2.72590749]
[1752983055318,0.4691,3669.8,3668.4,0.2726054]
[1752983055506,2.72522536,3669.5,3668.5,0.4305]
[1752983055709,5.382,3670.1,3668.6,3.0]
[1752983055940,0.25159606,3670.0,3668.6,0.4305]
[1752983056124,0.25159606,3669.9,3668.9,2.7255458]
[1752983056319,0.136,3669.7,3669.1,0.136]
[1752983057144,0.25158849,3669.6,3669.3,0.136]
[1752983057331,0.136,3670.0,3669.3,0.136]
[1752983057642,0.4691,3670.3,3669.8,3.53204413]
[1752983057851,0.25154695,3670.2,3670.1,2.72465096]
[1752983058036,0.25154695,3670.2,3670.1,6.15515096]
[1752983058241,0.7577,3672.0,3670.1,6.15515096]
[1752983058242,0.25153924,3671.8,3670.8,0.7571]
[1752983058436,0.14225371,3672.8,3671.0,3.0]
[1752983058636,2.72263546,3673.0,3672.0,2.72330801]
[1752983058851,0.7577,3672.8,3671.1,0.95666]
[1752983059075,0.002,3674.8,3669.7,0.4305]
[1752983059076,2.72356485,3671.7,3669.7,0.4305]
[1752983059252,0.7577,3672.4,3670.3,0.4305]
[1752983059438,0.48703933,3672.3,3670.3,0.4305]
[1752983059642,2.72408211,3671.0,3670.2,3.0]
[1752983059954,2.72346866,3671.8,3670.3,3.4305]
[1752983060259,0.01793933,3671.7,3670.3,3.4305]
[1752983060457,2.72396952,3671.2,3669.7,3.0]
[1752983060661,2.72400125,3671.1,3670.3,5.7245553]
[1752983060836,3.27383079,3671.3,3670.4,2.72449869]
[1752983061034,2.72393023,3671.2,3670.4,2.72449869]
[1752983061426,2.72382605,3671.4,3670.5,2.72440487]
[1752983061628,0.55,3671.5,3670.5,2.72440487]
[1752983061828,0.4613,3671.6,3670.3,0.84493462]
[1752983062036,2.72252195,3673.1,3670.0,1.2547]
[1752983062037,3.29130119,3672.0,3670.4,0.38449346]
[1752983062242,2.72344703,3671.9,3670.5,0.3976]
[1752983062440,2.72337278,3672.0,3671.1,2.72391474]
[1752983062640,2.72337278,3672.0,3670.9,2.72410495]
[1752983062835,2.72334557,3672.0,3671.1,2.7239131]
[1752983063155,0.4613,3672.4,3670.4,3.0]
[1752983063355,2.7228751,3672.6,3671.8,2.72345636]
[1752983063548,3.48049647,3672.7,3671.8,2.72345988]
[1752983063734,0.7577,3672.7,3671.8,2.72345988]
[1752983063940,0.7577,3672.7,3671.7,2.72352608]
[1752983064139,0.7577,3672.7,3671.9,2.72336374]
[1752983064343,3.48050903,3672.7,3671.3,3.0]
[1752983064657,0.7577,3672.7,3672.0,2.72328553]
[1752983064854,2.7227805,3672.8,3672.0,2.72329827]
[1752983065248,2.72285479,3672.7,3671.4,0.61715155]
[1752983065447,2.7229958,3672.5,3670.7,3.8071]
[1752983065648,0.01793933,3672.4,3670.7,4.2547]
[1752983065861,0.01793933,3672.4,3671.7,2.72347313]
[1752983066062,0.002,3672.5,3670.8,0.4476]
[1752983066265,0.002,3672.5,3671.9,2.72336647]
[1752983066433,0.01993933,3672.5,3671.0,2.7240001]
[1752983066632,0.002,3672.5,3671.7,2.72348212]
[1752983066861,2.72495369,3672.5,3671.5,3.17127704]
[1752983067065,0.8059,3672.2,3669.6,0.001]
[1752983067270,3.53019605,3670.7,3669.7,2.72501839]
[1752983067455,0.8059,3670.7,3669.8,0.27260184]
[1752983067771,3.53018104,3670.7,3669.9,2.72481001]
[1752983067970,3.53018104,3670.7,3669.8,2.72492383]
[1752983068176,0.01793933,3670.6,3669.6,0.001]
[1752983068470,2.86064739,3670.2,3669.6,0.137]
[1752983068674,0.47923933,3670.1,3669.6,0.001]
[1752983068842,2.86101839,3669.7,3669.6,0.001]
[1752983069369,0.136,3669.7,3669.6,0.001]
[1752983069555,2.72461194,3670.3,3669.6,0.001]
[1752983069972,0.4613,3670.6,3669.8,2.72487691]
[1752983070176,0.4613,3671.2,3669.9,0.27258769]
[1752983070467,2.72411384,3671.0,3670.2,2.72463061]
[1752983070667,0.7915,3671.4,3669.9,0.02724869]
[1752983070868,0.7915,3671.4,3669.8,4.2678]
[1752983070869,0.01793933,3671.3,3669.8,4.2678]
[1752983071060,0.01793933,3671.3,3670.7,2.72421489]
[1752983071259,0.7915,3671.4,3669.8,1.2678]
[1752983071446,2.72406017,3671.0,3669.9,2.72485544]
[1752983071653,2.72407646,3671.0,3670.0,0.54498738]
[1752983071853,2.74207838,3670.9,3669.8,2.72492704]
[1752983072046,2.74207838,3670.9,3669.9,2.72484291]
[1752983072047,2.7243428,3670.7,3669.9,2.72484291]
[1752983072254,0.4613,3671.3,3670.2,2.72460038]
[1752983072568,0.7915,3671.4,3670.2,0.02724647]
[1752983072738,0.01793933,3671.3,3670.3,2.72450686]
[1752983072934,0.01793933,3671.3,3670.4,0.8202]
[1752983073139,2.72374202,3671.5,3670.6,2.72433054]
[1752983073334,2.7237692,3671.4,3670.6,2.72433054]
[1752983073569,2.72354702,3671.7,3670.9,2.72411637]
[1752983074088,2.72354702,3671.7,3670.5,2.72436806]
[1752983074089,2.72381534,3671.4,3670.5,2.72436806]
[1752983074276,0.01793933,3671.3,3670.5,0.62691409]
[1752983074461,0.01793933,3671.7,3670.5,0.62691409]
[1752983074639,0.01793933,3672.2,3670.4,1.2678]
[1752983074840,3.18445058,3672.3,3671.4,2.7237016]
[1752983075176,2.72318054,3672.2,3671.3,3.0]
[1752983075373,0.4613,3672.3,3671.5,2.72367878]
[1752983075565,3.18442309,3672.3,3671.6,2.72355998]
[1752983075873,0.4613,3672.3,3671.6,2.72356916]
[1752983076176,0.7935,3672.5,3671.8,2.72343724]
[1752983076371,0.7935,3672.5,3671.3,3.0]
[1752983076372,0.4613,3672.4,3671.3,3.0]
[1752983076580,2.72336889,3672.0,3671.3,3.0]
[1752983077075,0.01793933,3672.3,3672.2,2.72316322]
[1752983077260,0.002,3672.5,3672.4,5.72301492]
[1752983077653,0.002,3672.5,3672.4,6.17061492]
[1752983078382,1e-08,3672.5,3672.4,6.17061492]
[1752983078565,1e-08,3672.5,3672.4,6.92431492]
[1752983079282,1e-08,3672.5,3672.4,7.47431492]
[1752983079454,1e-08,3672.5,3672.4,9.03459643]
[1752983080278,1e-08,3672.5,3672.4,14.38359643]
[1752983080445,1e-08,3672.5,3672.4,25.89478943]
[1752983080649,1e-08,3672.5,3672.4,19.21778743]
[1752983081882,1e-08,3672.5,3672.4,18.46058143]
[1752983082283,1e-08,3672.5,3672.4,17.62470243]
[1752983082888,1e-08,3672.5,3672.4,17.30380843]
[1752983083094,1e-08,3672.5,3672.4,16.88424543]
[1752983084191,1e-08,3672.5,3672.4,9.03459643]
[1752983084398,1e-08,3672.5,3672.4,14.37759643]
[1752983084600,1e-08,3672.5,3672.4,8.48459643]
[1752983084784,1e-08,3672.5,3672.4,14.37659643]
[1752983085202,1e-08,3672.5,3672.4,5.03699643]
[1752983085501,1e-08,3672.5,3672.4,3.61271492]
[1752983085679,1e-08,3672.5,3672.4,11.98094506]
[1752983085876,1e-08,3672.5,3672.4,11.95371492]
[1752983086082,1e-08,3672.5,3672.4,12.40131492]
[1752983086613,1e-08,3672.5,3672.4,8.95171492]
[1752983086896,1e-08,3672.5,3672.4,11.95171492]
[1752983087099,1e-08,3672.5,3672.4,13.47366694]
[1752983087305,1e-08,3672.5,3672.4,12.71996694]
[1752983087995,1e-08,3672.5,3672.4,7.38096694]
[1752983088203,1e-08,3672.5,3672.4,12.71896694]
[1752983089176,1e-08,3672.5,3672.4,0.136]
[1752983089381,1e-08,3672.5,3672.3,5.335]
[1752983089582,0.46130001,3672.5,3672.3,5.335]
[1752983089778,0.7828,3672.4,3671.2,2.72390499]
[1752983090104,2.72316322,3672.2,3671.4,2.72370365]
[1752983090290,0.66625541,3672.1,3671.4,2.72373569]
[1752983090494,0.66625541,3672.1,3671.5,3.0]
[1752983090495,0.4335,3672.0,3671.5,3.0]
[1752983090677,0.4335,3672.0,3671.3,3.0]
[1752983090877,0.4335,3672.0,3671.4,2.7237544]
[1752983091499,0.4335,3672.2,3671.0,5.333]
[1752983091711,0.4335,3672.2,3671.3,3.0]
[1752983091911,0.4335,3672.2,3671.7,2.72348305]
[1752983092110,0.4335,3672.2,3671.4,0.02723756]
[1752983092111,0.4335,3672.2,3671.8,2.72340919]
[1752983092475,0.4335,3672.2,3671.4,5.331]
[1752983092805,0.7828,3672.4,3672.2,2.7231583]
[1752983093006,0.7828,3672.4,3671.9,2.72337781]
[1752983093314,0.7828,3672.4,3672.1,2.72322513]
[1752983093617,1.2163,3672.4,3672.0,2.72329991]
[1752983093810,1.2163,3672.4,3672.1,2.72321367]
[1752983094150,0.7828,3672.4,3672.3,2.72308907]
[1752983094302,1e-08,3672.5,3672.4,5.72301492]
[1752983096442,1e-08,3672.5,3672.2,2.72313589]
[1752983096943,1e-08,3672.5,3672.0,2.72329682]
[1752983096944,0.4335,3672.4,3672.1,3.0]
[1752983097110,0.4335,3672.4,3672.1,5.72322775]
[1752983097293,0.4335,3672.3,3670.8,0.7594]
[1752983097626,0.754067,3672.2,3671.7,2.72351739]
[1752983097829,1e-08,3672.5,3672.2,2.72315376]
[1752983098126,1e-08,3672.5,3672.4,2.72301492]
[1752983099028,1e-08,3672.5,3672.4,8.04501492]
[1752983099194,1e-08,3672.5,3672.4,11.18101492]
[1752983100506,1e-08,3672.5,3672.4,3.136]
[1752983100705,1e-08,3672.5,3672.4,8.455]
[1752983100909,0.43350001,3672.5,3672.4,0.136]
[1752983101209,1e-08,3672.5,3672.2,2.72316322]
[1752983101410,1e-08,3672.5,3672.1,0.136]
[1752983101814,0.4335,3672.4,3672.1,3.136]
[1752983102137,1e-08,3672.5,3672.1,0.136]
[1752983102434,1e-08,3672.5,3672.1,2.85921108]
[1752983102640,1e-08,3672.5,3672.1,0.136]
[1752983102852,0.4335,3672.4,3672.1,0.136]
[1752983103139,0.4335,3672.4,3672.1,3.136]
[1752983103438,0.8253,3672.2,3669.6,12.521]
[1752983103619,0.8253,3672.2,3671.3,2.72377931]
[1752983103620,3.15674166,3672.1,3671.3,2.72377931]
[1752983103799,0.8253,3672.2,3671.8,2.72341611]
[1752983104124,0.4335,3672.1,3671.6,2.72360143]
[1752983104535,0.4335,3672.1,3671.7,2.72351744]
[1752983104716,0.4335,3672.1,3671.4,8.03673924]
[1752983104920,0.4335,3672.1,3671.4,2.72373924]
[1752983105130,0.4335,3672.1,3671.5,2.72366603]
[1752983105443,0.4335,3672.1,3671.5,2.72366803]
[1752983105944,0.4335,3672.1,3671.4,2.7237352]
[1752983106145,3.15675056,3672.1,3671.4,2.7237352]
[1752983106500,0.4335,3672.1,3671.4,3.0]
[1752983106805,1e-08,3672.5,3671.5,0.02723682]
[1752983107001,2.72303074,3672.4,3671.5,2.72364854]
[1752983107200,2.74089794,3672.5,3671.6,2.72360305]
[1752983107418,0.45143934,3672.5,3671.4,3.0]
[1752983107621,2.7231484,3672.3,3671.4,5.72369967]
[1752983107834,2.7231484,3672.3,3671.4,5.67369967]
[1752983108036,2.7231484,3672.3,3670.6,0.4453]
[1752983108037,0.8023,3671.8,3670.0,0.8287]
[1752983108240,0.8023,3671.8,3671.1,2.72395809]
[1752983108414,0.4335,3672.1,3672.0,2.72331154]
[1752983108732,1e-08,3672.5,3672.3,2.7230763]
[1752983109133,1e-08,3672.5,3672.2,2.72315636]
[1752983109346,1e-08,3672.5,3671.9,2.72338324]
[1752983109347,0.4335,3672.4,3671.9,5.307]
[1752983109549,0.4335,3672.4,3671.9,8.03037943]
[1752983109720,0.4335,3672.3,3671.5,2.72366248]
[1752983109924,0.77693933,3672.2,3671.4,3.0]
[1752983110348,0.77693933,3672.2,3671.5,2.72368241]
[1752983110534,3.50011146,3672.2,3671.5,2.72368241]
[1752983110731,0.77693933,3672.2,3671.5,2.72368241]
[1752983110930,0.77693933,3672.2,3671.6,2.72360787]
[1752983111331,1.44259127,3672.2,3671.4,5.72374141]
[1752983111538,1.42465194,3672.2,3671.6,2.72360823]
[1752983111912,0.4335,3672.1,3670.3,9.25950351]
[1752983112124,0.01793933,3672.0,3670.8,2.72414951]
[1752983112445,0.759,3671.2,3670.5,2.72435816]
[1752983112741,0.45143933,3671.1,3670.5,3.0]
[1752983112987,3.17542451,3671.1,3670.2,2.72462439]
[1752983113125,3.15755339,3671.0,3670.2,2.72462439]
[1752983113314,3.15755339,3671.0,3670.3,3.0]
[1752983113642,0.4335,3670.9,3670.6,0.136]
[1752983113951,0.759,3670.8,3669.6,0.001]
[1752983114261,1.1925,3670.8,3670.3,0.136]
[1752983114615,0.759,3670.8,3670.7,2.72527602]
[1752983114948,0.759,3670.8,3669.1,0.001]
[1752983114949,1.3401,3669.7,3669.1,0.001]
[1752983115143,1.3401,3669.7,3669.1,2.72645521]
[1752983115144,0.7901,3669.7,3669.1,2.72645521]
[1752983115344,0.7901,3670.2,3669.2,0.02725389]
[1752983115746,0.7901,3670.2,3669.3,2.72529764]
[1752983116050,0.7901,3670.2,3669.2,0.4453]
[1752983116247,0.7901,3670.2,3669.1,0.8012]
[1752983116248,4.06511839,3669.7,3669.1,0.001]
[1752983116424,4.09918111,3669.7,3669.1,0.001]
[1752983116765,3.94861839,3669.7,3669.1,0.001]
[1752983117246,1.2236,3669.7,3669.1,0.001]
[1752983117426,1.25766272,3669.7,3669.1,0.001]
[1752983117824,0.7901,3670.1,3669.1,0.02825464]
[1752983118026,0.7901,3670.1,3669.7,2.72501454]
[1752983118233,0.7901,3670.1,3669.3,2.72531219]
[1752983118430,0.7901,3670.1,3669.7,2.72501839]
[1752983118645,0.4335,3670.8,3669.7,2.72501839]
[1752983118646,0.7901,3670.7,3669.7,0.27260184]
[1752983118847,0.7901,3670.7,3669.7,0.4453]
[1752983119024,0.7901,3670.7,3669.8,0.02724944]
[1752983119230,0.7901,3670.7,3669.6,0.001]
[1752983119548,3.51439489,3670.7,3669.9,2.72486713]
[1752983119728,3.51439489,3670.7,3669.9,2.67486713]
[1752983120129,2.72459075,3670.3,3669.7,3.0]
[1752983120336,0.4743,3670.6,3669.7,3.0]
[1752983120545,0.4743,3670.6,3670.0,2.72477655]
[1752983120753,0.7901,3670.7,3670.0,2.72477655]
[1752983120964,0.7901,3670.7,3669.9,2.72486042]
[1752983121161,0.7901,3670.7,3669.8,2.72493507]
[1752983121367,0.7901,3670.7,3669.8,0.57259351]
[1752983121564,0.7901,3670.7,3669.8,3.32476799]
[1752983121764,0.7901,3670.7,3669.8,0.57259351]
[1752983122065,2.72441892,3670.6,3669.8,2.72492171]
[1752983122266,2.72441892,3670.6,3669.9,2.72486942]
[1752983122760,0.7901,3670.7,3669.9,2.72486942]
[1752983122965,2.72455145,3670.4,3669.6,2.72608137]
[1752983123164,0.03405716,3670.3,3669.6,2.72608137]
[1752983123461,2.72449869,3670.4,3669.7,3.0]
[1752983123668,2.72443214,3670.5,3669.7,2.7250069]
[1752983123840,2.72436547,3670.6,3669.9,3.0]
[1752983124040,1.2644,3670.7,3669.7,5.72496353]
[1752983124241,2.72440547,3670.6,3669.9,3.0]
[1752983124446,0.7901,3670.7,3669.9,3.0]
[1752983124657,0.7901,3670.7,3669.7,0.57259635]
[1752983124955,0.7901,3670.7,3669.7,2.72500185]
[1752983124956,2.72453723,3670.4,3669.7,2.72500185]
[1752983125142,2.75869362,3670.3,3669.6,0.001]
[1752983125353,0.27586936,3670.2,3669.6,0.001]
[1752983125554,3.27501839,3669.7,3669.6,0.001]
[1752983125743,4.03421839,3669.7,3669.6,0.001]
[1752983125934,4.54258111,3669.7,3669.6,0.001]
[1752983127468,9.24051839,3669.7,3669.6,0.001]
[1752983127670,3.95851839,3669.7,3669.6,0.001]
[1752983127848,9.23951839,3669.7,3669.6,0.001]
[1752983128047,0.7592,3669.7,3669.6,0.001]
[1752983128368,0.7592,3670.2,3669.6,0.001]
[1752983128549,2.72486607,3670.0,3669.6,0.001]
[1752983128746,1.41395553,3670.2,3669.2,2.67638078]
[1752983128948,0.7592,3670.2,3669.5,2.72513018]
[1752983129173,0.7592,3670.2,3669.4,2.72522899]
[1752983129370,2.72474938,3670.1,3669.4,2.72522899]
[1752983129549,2.72494955,3669.8,3669.1,2.72641367]
[1752983129756,2.72494955,3669.8,3669.1,0.001]
[1752983130066,0.50836272,3669.7,3667.9,3.0]
[1752983130270,0.7649,3669.9,3669.2,2.72533177]
[1752983130478,0.7649,3669.9,3669.3,2.7252482]